bitfinex-derivatives/quotes_BNBF0:USTF0_20250329
["timestamp","ask_amount","ask_price","bid_price","bid_amount"]
[1743243090678,6.41123282,606.07,606.04,1.031]
[1743243090880,5.91638996,606.06,606.04,1.031]
[1743243091081,5.91638996,606.05,606.04,1.031]
[1743243091773,9.39807894,606.05,606.04,1.031]
[1743243092475,3.48168898,606.05,606.04,1.031]
[1743243092681,9.40317939,606.05,606.04,1.031]
[1743243098386,9.89804891,606.05,606.04,1.031]
[1743243098989,9.40317939,606.05,606.04,1.031]
[1743243100392,8.74352904,606.05,606.04,1.031]
[1743243101689,9.40335439,606.05,606.04,1.031]
[1743243102591,8.74352904,606.05,606.04,1.031]
[1743243104285,9.40334961,606.05,606.04,1.031]
[1743243104791,9.40796614,606.05,606.04,1.031]
[1743243106993,9.90284694,606.05,606.04,1.031]
[1743243108698,9.90284694,606.05,605.87,1.031]
[1743243108896,6.42402827,606.04,605.88,0.27052456]
[1743243109094,6.42402827,606.03,605.88,0.27052456]
[1743243109290,6.42402827,606.02,605.88,0.27052456]
[1743243109497,6.42402827,606.01,605.88,0.27052456]
[1743243109698,5.92913095,606.0,605.88,0.27052456]
[1743243109897,5.92913095,605.99,605.88,0.27052456]
[1743243110093,5.92913095,605.98,605.88,0.27052456]
[1743243110292,5.92913095,605.97,605.88,0.27052456]
[1743243110494,5.92913095,605.96,605.88,0.27052456]
[1743243110692,5.92874947,605.95,605.88,0.27052456]
[1743243110894,3.7677841,605.94,605.88,0.27052456]
[1743243111098,3.7677841,605.93,605.88,0.27052456]
[1743243111292,3.7677841,605.92,605.88,0.27052456]
[1743243111495,2.28033223,605.91,605.88,0.27052456]
[1743243111696,2.28033223,605.9,605.88,0.27052456]
[1743243111997,2.28033223,605.89,605.88,0.27052456]
[1743243112594,3.3657317,605.89,605.88,0.27052456]
[1743243112799,1.08539947,605.89,605.88,0.27052456]
[1743243112999,3.36526838,605.89,605.88,0.27052456]
[1743243113903,2.01496694,605.89,605.88,0.27052456]
[1743243114098,1.08539947,605.89,605.88,0.27052456]
[1743243115603,1.08539947,605.89,605.88,0.27052938]
[1743243116002,1.63375407,606.15,605.88,0.27052938]
[1743243116202,6.42178007,606.14,605.88,0.27052938]
[1743243116404,6.42178007,606.13,605.88,0.27052938]
[1743243116599,6.42178007,606.12,605.88,0.27052938]
[1743243116800,6.42178007,606.11,605.88,0.27052938]
[1743243117100,6.4216668,606.1,605.88,0.27052938]
[1743243117301,6.4216668,606.09,605.88,0.27052938]
[1743243117502,6.4216668,606.08,605.88,0.27052938]
[1743243117697,6.4216668,606.07,605.88,0.27052938]
[1743243117898,6.4216668,606.06,605.88,0.27052938]
[1743243118100,3.76656282,606.05,605.88,0.27052938]
[1743243118301,3.76656282,606.04,605.88,0.27052938]
[1743243118601,2.27952236,606.03,605.88,0.27052938]
[1743243118805,2.27952236,606.02,605.88,0.27052938]
[1743243119102,0.929627,606.01,605.88,0.27052938]
[1743243119301,0.929627,606.0,605.88,0.27052938]
[1743243119495,0.929627,605.99,605.88,0.27052938]
[1743243119699,1.0739936,606.01,605.88,0.27052938]
[1743243119897,0.92965908,606.0,605.88,0.27052938]
[1743243120095,0.92965908,605.99,605.88,0.27052938]
[1743243120295,0.92963145,605.98,605.88,0.27052938]
[1743243120497,1.0739936,606.01,605.88,0.27052938]
[1743243120697,1.0739936,605.98,605.88,0.27052938]
[1743243121101,0.92960541,605.97,605.88,0.27052938]
[1743243121298,2.27987386,605.96,605.87,1.031]
[1743243121597,3.76701069,605.95,605.87,1.031]
[1743243121796,1.0739936,605.97,605.87,1.031]
[1743243121797,3.76701069,605.94,605.88,1.23221343]
[1743243121995,4.43988897,605.93,605.88,1.23221343]
[1743243122201,5.9267422,605.92,605.88,1.23221343]
[1743243122505,5.92639783,605.91,605.88,1.23221343]
[1743243122705,3.76638272,605.9,605.88,1.23221343]
[1743243122906,3.76638272,605.89,605.88,1.23221343]
[1743243123705,6.55867697,605.89,605.88,1.23221343]
[1743243124203,6.55867697,605.89,598.54,9.86694597]
[1743243124204,6.55867697,605.89,605.77,1.23221343]
[1743243124507,2.27905245,605.88,605.78,0.27055034]
[1743243124705,2.27905245,605.87,605.78,0.27055034]
[1743243125008,1.0739936,605.87,605.78,0.27055034]
[1743243125806,0.98422396,606.19,605.78,0.27055034]
[1743243125807,1.0739936,605.86,605.78,0.27055034]
[1743243126306,1.63375407,606.18,605.78,0.27055034]
[1743243126506,6.42108962,606.17,605.78,0.27055034]
[1743243126808,6.42108962,606.16,605.79,0.27055034]
[1743243127008,6.42108962,606.15,605.75,0.27055034]
[1743243127203,6.42108962,606.14,605.8,0.27055034]
[1743243127402,6.42108962,606.13,605.76,1.309]
[1743243127606,6.42108962,606.12,605.77,0.27048679]
[1743243127803,6.42108962,606.11,605.77,0.27048679]
[1743243128004,6.42108962,606.1,605.77,0.27048679]
[1743243128303,5.92621862,606.09,605.77,0.27048679]
[1743243128509,6.42143017,606.08,605.77,0.27048679]
[1743243128705,5.92658435,606.07,605.77,0.27048679]
[1743243128908,5.92658435,606.06,605.95,1.23499871]
[1743243129105,5.92658435,606.05,605.95,1.23499871]
[1743243129306,3.76662257,606.04,605.95,1.23499871]
[1743243129507,2.27945552,606.03,605.95,1.23499871]
[1743243129710,2.27945552,606.02,605.95,1.23499871]
[1743243129914,2.27945552,606.01,605.95,1.23499871]
[1743243130105,2.27945552,606.0,605.95,1.23499871]
[1743243130307,2.27945552,605.99,605.95,1.23499871]
[1743243130505,2.27945552,605.98,605.95,1.23499871]
[1743243130708,2.27945552,605.97,605.95,1.23499871]
[1743243131008,0.92947941,605.96,605.95,1.23499871]
[1743243131706,2.00349324,605.96,605.95,1.23499871]
[1743243131912,2.00349324,605.96,605.76,1.309]
[1743243132111,0.92947941,605.95,605.76,1.309]
[1743243132310,1.07401383,605.96,605.79,0.28711924]
[1743243132505,2.00355587,605.95,605.79,0.28711924]
[1743243132706,1.07401383,605.95,605.79,0.28711924]
[1743243133011,1.07401383,605.94,605.79,0.28711924]
[1743243133913,1.07401383,605.93,605.79,0.28711924]
[1743243134310,1.63375407,606.42,605.79,0.28711924]
[1743243134511,6.42310666,606.41,605.79,0.28711924]
[1743243134710,6.42310666,606.4,605.79,0.28711924]
[1743243134910,6.42310666,606.39,605.76,1.309]
[1743243135111,6.42310666,606.38,605.76,1.309]
[1743243135307,6.42310666,606.37,605.76,1.309]
[1743243135507,6.42310666,606.36,605.76,1.309]
[1743243135812,6.42310666,606.35,605.76,1.309]
[1743243136012,6.42310666,606.34,605.76,1.309]
[1743243136213,1.64076442,606.51,605.76,1.309]
[1743243136214,6.42310666,606.33,605.77,0.28707779]
[1743243136412,6.42310666,606.32,605.77,0.28707779]
[1743243136613,6.42263817,606.31,605.77,0.28707779]
[1743243136810,5.92782943,606.3,605.77,0.28707779]
[1743243137009,5.92782943,606.29,605.77,0.28707779]
[1743243137310,6.42260883,606.28,605.77,0.28707779]
[1743243137517,6.42260883,606.27,605.78,0.27045231]
[1743243137816,6.42260883,606.26,605.79,0.27044094]
[1743243138013,6.42260883,606.25,605.8,0.27044094]
[1743243138316,5.92782943,606.24,605.81,0.27044094]
[1743243138515,5.92782943,606.23,605.82,0.27044094]
[1743243138718,5.92782943,606.22,605.78,0.27044094]
[1743243138916,5.92782943,606.22,605.77,0.28708371]
[1743243138917,5.92782943,606.21,605.79,0.27044094]
[1743243139117,5.92782943,606.2,605.94,1.23499871]
[1743243139316,3.76740385,606.19,605.95,0.27044094]
[1743243139511,3.76740385,606.18,605.95,0.27044094]
[1743243139712,3.76696534,606.17,605.95,0.27044094]
[1743243139917,2.27993439,606.16,605.95,0.27044094]
[1743243140109,2.27993439,606.15,605.95,0.27044094]
[1743243140314,2.27993439,606.14,605.95,0.27044094]
[1743243140510,2.79312075,606.2,605.95,0.27044094]
[1743243140709,3.76627537,606.19,606.01,1.23499871]
[1743243140917,3.76627537,606.18,606.02,0.27044094]
[1743243141111,3.76627537,606.17,606.02,0.27044094]
[1743243141314,2.27933373,606.16,606.02,0.27044094]
[1743243141515,2.27933373,606.15,606.02,0.27044094]
[1743243141717,0.92933852,606.14,606.02,0.27044094]
[1743243141914,0.92933852,606.13,606.02,0.27044094]
[1743243142114,2.00361573,606.12,606.02,0.27044094]
[1743243142314,1.07427721,606.12,606.02,0.27044094]
[1743243143215,1.07427721,606.11,606.02,0.27044094]
[1743243143414,1.07427721,606.11,605.98,1.23499871]
[1743243143720,1.07427721,606.1,605.99,0.27043135]
[1743243144314,2.27923936,606.09,605.99,0.27043135]
[1743243144619,2.27941492,606.08,605.99,0.27043135]
[1743243144819,2.27941492,606.07,605.99,0.27043135]
[1743243145023,0.9293721,606.06,605.99,0.27043135]
[1743243145227,0.9293721,606.05,605.99,0.27043135]
[1743243145423,0.9293721,606.05,605.95,1.547]
[1743243145424,0.9293721,606.04,605.95,1.547]
[1743243145624,0.98422133,606.35,605.96,0.270447]
[1743243145824,7.40563444,606.34,605.96,0.270447]
[1743243146126,6.42141311,606.33,605.96,0.270447]
[1743243146425,6.42141311,606.32,605.95,1.547]
[1743243146626,6.42119217,606.31,605.96,0.27044678]
[1743243146826,6.42119217,606.3,605.96,0.27044678]
[1743243147029,6.42119217,606.29,605.96,0.27044678]
[1743243147326,6.42119217,606.28,605.96,0.27044678]
[1743243147527,6.42119217,606.27,605.96,0.27044678]
[1743243147728,6.42119217,606.26,605.96,0.27044678]
[1743243147926,6.42119217,606.25,605.96,0.27044678]
[1743243148128,6.42119217,606.24,605.96,0.27044678]
[1743243148428,6.42119217,606.23,605.96,0.27044678]
[1743243148630,3.51007873,606.22,605.96,0.27044678]
[1743243148827,5.92670802,606.21,605.96,0.27044678]
[1743243149027,5.92670802,606.2,605.96,0.27044678]
[1743243149227,5.92670802,606.19,605.96,0.27044678]
[1743243149425,3.76665957,606.18,605.96,0.27044678]
[1743243149626,3.76665957,606.17,605.96,0.27044678]
[1743243149828,3.76665957,606.16,605.96,0.27044678]
[1743243150029,2.27950308,606.15,605.96,0.27044678]
[1743243150224,2.27947081,606.14,605.96,0.27044678]
[1743243150424,0.9294728,606.13,605.96,0.27044678]
[1743243150629,0.9294728,606.12,605.97,1.624]
[1743243150828,1.07396807,606.13,605.98,0.27044678]
[1743243151625,1.07396807,606.12,605.97,1.624]
[1743243151829,1.07396807,606.12,605.98,0.27040504]
[1743243152230,1.64040105,606.48,605.98,0.27040504]
[1743243152434,6.42368119,606.47,605.98,0.27040504]
[1743243152629,6.42368119,606.46,605.98,0.27040504]
[1743243152830,6.42385298,606.45,605.98,0.27040504]
[1743243153026,6.42385298,606.44,605.98,0.27040504]
[1743243153330,9.21733001,606.43,605.98,0.27040504]
[1743243153531,6.42385298,606.42,605.98,0.27040504]
[1743243153731,2.79347703,606.43,605.98,0.27040504]
[1743243153732,6.42385298,606.41,605.98,0.27040504]
[1743243154032,6.42385298,606.4,605.98,0.27040504]
[1743243154233,5.92914319,606.39,605.98,0.27040504]
[1743243154530,5.92914319,606.38,605.98,0.27040504]
[1743243154730,5.92914319,606.37,605.98,0.27040504]
[1743243154933,5.92914319,606.36,605.98,0.27040504]
[1743243155128,5.92914319,606.35,605.98,0.27040504]
[1743243155329,3.76805365,606.34,605.98,0.27040504]
[1743243155531,3.76805365,606.33,605.98,0.27040504]
[1743243155730,3.76805365,606.32,605.98,0.27040504]
[1743243155927,2.79347703,606.37,605.98,0.27040504]
[1743243155928,3.76792999,606.31,605.98,0.27040504]
[1743243156233,2.28043969,606.3,605.98,0.27040504]
[1743243156428,2.28043969,606.29,605.98,0.27040504]
[1743243156732,2.28043969,606.28,605.98,0.27040504]
[1743243156926,2.28043969,606.27,605.98,0.27040504]
[1743243157125,2.28043969,606.26,605.98,0.27040504]
[1743243157327,2.28043969,606.25,605.98,0.27040504]
[1743243157532,0.92975873,606.24,605.97,1.91102688]
[1743243157733,2.27988675,606.23,605.98,0.27040954]
[1743243157930,2.27983157,606.22,605.98,0.27040954]
[1743243158134,2.27983157,606.21,605.98,0.27040954]
[1743243158428,2.27983157,606.2,605.97,1.91102688]
[1743243158631,2.27983157,606.19,605.98,0.27044845]
[1743243158935,2.27983157,606.18,605.98,1.61444845]
[1743243159132,2.27983157,606.17,605.99,0.27044845]
[1743243159335,0.92975873,606.16,605.99,0.27044845]
[1743243159536,1.07382905,606.18,605.99,0.27044845]
[1743243159537,2.27966224,606.15,605.99,0.27044845]
[1743243159836,2.27966224,606.14,605.99,0.27044845]
[1743243160134,1.07382905,606.15,605.99,0.27044845]
[1743243160135,2.27966224,606.13,605.99,0.27044845]
[1743243160335,2.27966224,606.12,605.99,0.27044845]
[1743243160536,2.27966224,606.11,605.99,0.27044845]
[1743243160738,2.27966224,606.1,605.99,0.27044845]
[1743243160934,0.92975873,606.09,605.99,0.27044845]
[1743243161130,3.35340239,606.08,605.98,1.344]
[1743243161436,2.27957334,606.07,605.98,1.344]
[1743243161637,2.27957334,606.06,605.98,1.344]
[1743243161836,2.27957334,606.05,605.98,1.344]
[1743243162030,2.27957334,606.04,605.98,1.344]
[1743243162230,2.28006941,606.03,605.98,1.344]
[1743243162430,0.92975873,606.02,605.98,1.344]
[1743243162635,0.92975873,606.01,605.98,1.344]
[1743243162835,0.92985375,606.0,605.98,1.344]
[1743243163037,1.07382905,606.02,605.98,1.344]
[1743243163338,2.00369519,606.01,605.98,1.344]
[1743243163530,0.92986614,606.0,605.98,1.344]
[1743243163730,1.07382905,606.01,605.98,1.344]
[1743243163937,0.92992039,606.0,605.98,1.344]
[1743243164133,1.07382905,606.01,605.98,1.344]
[1743243164330,2.00379792,606.0,605.98,1.344]
[1743243164541,1.07382905,606.0,605.99,0.2704833]
[1743243164739,2.00380761,606.0,605.99,0.2704833]
[1743243165634,2.00380761,606.0,605.99,0.27048394]
[1743243166936,1.07382905,606.0,605.99,0.27048394]
[1743243167943,0.98478523,606.38,605.99,0.27048394]
[1743243167944,1.64027366,606.37,605.99,0.27048394]
[1743243168142,6.42600542,606.36,605.99,0.27048394]
[1743243168341,6.42600542,606.35,605.99,0.27048394]
[1743243168641,6.42600542,606.34,605.99,0.27048394]
[1743243168842,6.42600542,606.33,605.99,0.27048394]
[1743243169141,6.42600542,606.32,605.99,0.27048394]
[1743243169341,6.42600542,606.31,606.0,0.27045499]
[1743243169542,1.64027366,606.37,605.98,1.344]
[1743243169543,6.42600542,606.3,606.01,0.27045499]
[1743243169736,6.42600542,606.29,606.02,0.27045499]
[1743243169936,6.42600542,606.28,605.99,0.27045499]
[1743243170141,5.93122077,606.27,606.0,0.27045499]
[1743243170335,5.93122077,606.26,605.98,0.27045499]
[1743243170535,2.28123876,606.25,605.98,0.27045499]
[1743243170738,0.9301169,606.24,606.08,1.23499871]
[1743243170943,2.79452548,606.27,606.09,0.27045499]
[1743243171244,1.07481749,606.24,606.09,0.27045499]
[1743243171837,1.07481749,606.23,606.09,0.27045499]
[1743243172540,1.64027366,606.48,606.09,0.27045499]
[1743243172742,6.42565167,606.47,606.09,0.27045499]
[1743243173043,6.42565167,606.46,606.09,0.27045499]
[1743243173240,6.42565167,606.45,606.12,1.23499871]
[1743243173544,6.42565167,606.44,606.13,0.27045499]
[1743243173745,6.42565167,606.43,606.13,0.27045499]
[1743243173939,0.98478523,606.4,606.13,0.27045499]
[1743243174139,6.42565167,606.39,606.13,0.27045499]
[1743243174338,6.42565167,606.38,606.13,0.27045499]
[1743243174541,6.42565167,606.37,606.13,0.27045499]
[1743243174742,6.42565167,606.36,606.13,0.27045499]
[1743243175044,6.42563499,606.35,606.13,0.27045499]
[1743243175242,6.42563499,606.34,606.13,0.27045499]
[1743243175442,6.42563499,606.33,606.13,0.27045499]
[1743243175639,5.93093454,606.32,606.13,1.5054537]
[1743243175840,8.7251835,606.31,606.13,1.23499871]
[1743243176142,5.93093454,606.3,606.13,1.23499871]
[1743243176347,5.93093454,606.29,606.13,1.23499871]
[1743243176547,3.76923411,606.28,606.13,1.23499871]
[1743243176749,3.76923411,606.27,606.13,1.23499871]
[1743243176949,3.76923411,606.26,606.13,1.23499871]
[1743243177149,2.28112867,606.25,606.13,1.23499871]
[1743243177346,2.28112867,606.24,606.13,1.23499871]
[1743243177550,2.28112867,606.23,606.13,1.23499871]
[1743243177853,2.28112867,606.22,606.08,1.475]
[1743243178044,2.28112867,606.21,606.08,1.475]
[1743243178249,2.28112867,606.2,606.08,1.475]
[1743243178450,2.28112867,606.19,606.08,1.475]
[1743243178749,0.9300659,606.18,606.08,1.475]
[1743243178949,0.9300659,606.17,606.08,1.475]
[1743243179146,0.9300659,606.16,606.08,1.475]
[1743243179346,1.07471114,606.17,606.08,1.475]
[1743243179551,0.93010961,606.16,606.08,1.475]
[1743243179750,1.07471114,606.16,606.08,1.475]
[1743243179946,1.07471114,606.16,606.09,0.26997607]
[1743243180447,1.64027366,606.53,606.09,0.26997607]
[1743243180652,6.42527865,606.52,606.09,0.26997607]
[1743243180851,6.42526112,606.51,606.09,0.26997607]
[1743243181051,6.42526112,606.5,606.1,0.26995614]
[1743243181353,6.42526112,606.49,606.11,0.26995614]
[1743243181551,6.42526112,606.48,606.09,0.26995614]
[1743243181851,6.42526112,606.47,606.1,0.26995614]
[1743243182047,6.42526112,606.46,606.09,0.26995614]
[1743243182252,6.42526112,606.45,606.11,0.26995614]
[1743243182452,6.42572753,606.44,606.12,0.26995614]
[1743243182653,6.42572753,606.43,606.09,0.26995614]
[1743243182852,6.42572753,606.42,606.09,0.26995614]
[1743243183049,6.42572753,606.41,606.09,0.26995614]
[1743243183252,6.42572753,606.4,606.09,0.26995614]
[1743243183446,5.93108817,606.39,606.09,0.26995614]
[1743243183650,5.93108817,606.38,606.09,0.26995614]
[1743243183853,5.93108817,606.37,606.09,0.26995614]
[1743243184049,5.93108817,606.36,606.09,0.26995614]
[1743243184354,2.7940222,606.36,606.1,0.26995219]
[1743243184554,5.93303803,606.35,606.09,0.26995219]
[1743243184854,5.93303803,606.34,606.1,0.26995219]
[1743243185054,3.77056193,606.33,606.09,0.26995219]
[1743243185353,2.7940222,606.34,606.1,0.26995219]
[1743243185354,3.77056193,606.32,606.1,0.26995219]
[1743243185549,2.2819377,606.31,606.09,0.26995219]
[1743243185751,2.2819377,606.3,606.1,0.26995219]
[1743243185948,2.2819377,606.29,606.09,0.26995219]
[1743243186153,0.93039014,606.28,606.09,0.26995219]
[1743243186351,0.93039014,606.27,606.09,0.26995219]
[1743243186548,0.93039014,606.26,606.09,0.26995219]
[1743243186850,1.07462392,606.29,606.09,0.26995219]
[1743243187059,1.07462392,606.25,606.09,0.26995219]
[1743243187759,0.98526838,606.65,606.09,0.26995219]
[1743243187760,1.64027366,606.63,606.09,0.26995219]
[1743243187956,6.42570001,606.62,606.09,0.26995219]
[1743243188153,6.42570001,606.61,606.09,0.26995219]
[1743243188457,6.42570001,606.6,606.09,0.26995219]
[1743243188651,6.42570001,606.59,606.08,0.26995219]
[1743243188853,6.42570001,606.58,606.09,0.26995219]
[1743243189054,6.42570001,606.57,606.02,0.26995219]
[1743243189253,6.42515016,606.56,606.07,0.28695706]
[1743243189452,6.42515016,606.55,606.08,0.26995219]
[1743243189652,6.42515016,606.54,606.08,0.26995219]
[1743243189857,6.42512588,606.53,606.08,0.26995219]
[1743243190052,5.93058173,606.52,606.08,0.26995219]
[1743243190256,5.93058173,606.51,606.08,0.26995219]
[1743243190457,5.93058173,606.5,606.08,0.26995219]
[1743243190759,3.76913251,606.49,606.08,0.26995219]
[1743243190953,3.76913251,606.48,606.08,0.26995219]
[1743243191152,3.76913251,606.47,606.08,0.26995219]
[1743243191459,2.28099297,606.46,606.08,0.26995219]
[1743243191659,2.28099297,606.45,606.08,0.26995219]
[1743243191859,0.93008721,606.44,606.08,0.26995219]
[1743243192060,0.93008721,606.44,606.09,1.255]
[1743243192061,2.28035497,606.44,606.09,1.255]
[1743243192255,0.93008721,606.43,606.09,1.52495219]
[1743243192459,1.07452817,606.44,606.1,0.26995219]
[1743243193254,2.00387893,606.43,606.1,0.26995219]
[1743243193460,1.07452817,606.43,606.1,0.26995219]
[1743243193953,1.64027366,606.74,606.1,0.26995219]
[1743243194158,6.41951303,606.73,606.1,0.26995219]
[1743243194453,1.64027366,606.74,606.1,0.26995219]
[1743243194454,6.41951303,606.72,606.11,1.128]
[1743243194762,6.41951303,606.71,606.12,0.26981052]
[1743243194959,6.41951303,606.7,606.12,0.26981052]
[1743243195159,6.41951303,606.69,606.12,0.26981052]
[1743243195459,6.41951303,606.68,606.12,0.26981052]
[1743243195661,6.41951303,606.67,606.12,0.26981052]
[1743243195955,6.41951303,606.66,606.12,0.26981052]
[1743243196161,6.41951303,606.65,606.12,0.26981052]
[1743243196354,6.41951303,606.64,606.11,1.128]
[1743243196556,6.41669844,606.63,606.13,0.26980637]
[1743243196756,6.41669844,606.62,606.14,0.26980637]
[1743243196958,6.41669844,606.61,606.12,0.26980637]
[1743243197155,6.41669566,606.6,606.13,0.26980637]
[1743243197358,6.41669566,606.59,606.12,0.26980637]
[1743243197662,8.71169332,606.58,606.13,0.26980637]
[1743243197862,5.92219068,606.57,606.12,0.26980637]
[1743243198066,5.92219068,606.56,606.13,0.26980637]
[1743243198364,5.92219068,606.55,606.12,0.26980637]
[1743243198565,2.78950264,606.56,606.11,1.128]
[1743243198566,3.76365483,606.54,606.13,0.26980637]
[1743243198765,3.76365483,606.53,606.12,0.26980637]
[1743243198958,3.76365483,606.52,606.12,0.26980637]
[1743243199159,2.27776564,606.51,606.12,0.26980637]
[1743243199359,2.27776564,606.5,606.12,0.26980637]
[1743243199564,2.27776564,606.49,606.12,0.26980637]
[1743243199763,2.27776564,606.48,606.12,0.26980637]
[1743243199959,2.27776564,606.47,606.12,0.26980637]
[1743243200161,2.27776564,606.46,606.12,0.26980637]
[1743243200465,0.92868074,606.45,606.12,0.26980637]
[1743243200665,0.92868074,606.44,606.12,0.26980637]
[1743243200864,0.92868074,606.43,606.12,0.26980637]
[1743243201063,0.92816972,606.42,606.12,0.26980637]
[1743243201365,2.27653273,606.41,606.12,0.26980637]
[1743243201566,2.27653273,606.4,606.12,0.26980637]
[1743243201766,2.27653273,606.39,606.12,0.26980637]
[1743243201959,2.27653273,606.38,606.12,0.26980637]
[1743243202162,2.27653273,606.37,606.12,0.26980637]
[1743243202364,0.92816972,606.36,606.12,0.26980637]
[1743243202560,0.92816972,606.35,606.12,0.26980637]
[1743243202765,1.07288563,606.38,606.12,0.26980637]
[1743243202964,0.92822733,606.37,606.12,0.26980637]
[1743243203266,1.07254937,606.37,606.12,0.26980637]
[1743243203864,1.07254937,606.36,606.12,0.26980637]
[1743243204065,1.07254937,606.36,606.13,1.367]
[1743243204268,1.07254937,606.36,606.14,0.26980637]
[1743243204467,1.63826342,606.7,606.14,0.26980637]
[1743243204662,4.00009406,606.69,606.14,0.26980637]
[1743243204961,9.20158492,606.68,606.14,0.26980637]
[1743243205168,6.41324624,606.67,606.14,0.26980637]
[1743243205363,6.41324624,606.66,606.14,0.26980637]
[1743243205563,6.41324624,606.65,606.14,0.26980637]
[1743243205763,6.41324624,606.64,606.14,0.26980637]
[1743243205966,6.41324624,606.63,606.14,0.26980637]
[1743243206168,6.41324624,606.62,606.14,0.26980637]
[1743243206368,6.41324624,606.61,606.14,0.26980637]
[1743243206669,6.41324624,606.6,606.15,1.05]
[1743243206866,6.41318954,606.59,606.16,0.26980637]
[1743243207070,6.41318954,606.58,606.16,0.26980637]
[1743243207270,6.41318954,606.57,606.16,0.26980637]
[1743243207463,6.41318954,606.56,606.16,0.26980637]
[1743243207665,6.41318954,606.55,606.16,0.26980637]
[1743243207868,5.91863505,606.54,606.16,0.26980637]
[1743243208064,5.91863505,606.53,606.16,0.26980637]
[1743243208263,6.41319787,606.52,606.15,1.05]
[1743243208469,6.41319787,606.51,606.15,1.05]
[1743243208669,6.41319787,606.5,606.15,1.05]
[1743243208870,2.41337856,606.49,606.16,0.26997298]
[1743243209070,5.91923288,606.48,606.16,0.26997298]
[1743243209267,5.91923288,606.47,606.16,0.26997298]
[1743243209468,5.91923288,606.46,606.16,0.26997298]
[1743243209666,5.91923288,606.45,606.16,0.26997298]
[1743243209864,3.76178407,606.44,606.16,0.26997298]
[1743243210069,3.76178407,606.43,606.16,0.26997298]
[1743243210369,3.76178407,606.42,606.16,0.26997298]
[1743243210569,2.27662803,606.41,606.16,0.26997298]
[1743243210872,2.27662803,606.4,606.16,0.26997298]
[1743243211066,2.27662803,606.39,606.16,0.26997298]
[1743243211266,2.27662803,606.38,606.16,0.26997298]
[1743243211468,2.27662803,606.37,606.16,0.26997298]
[1743243211673,0.92822252,606.36,606.16,0.26997298]
[1743243211972,0.92822252,606.35,606.16,0.26997298]
[1743243212172,0.92822252,606.34,606.16,0.26997298]
[1743243212373,1.07243795,606.35,606.16,0.26997298]
[1743243212566,1.07243795,606.35,606.16,1.98697298]
[1743243212767,1.07243795,606.35,606.17,0.26997298]
[1743243212972,1.63826342,606.6,606.17,0.26997298]
[1743243213167,6.41384517,606.59,606.17,0.26997298]
[1743243213371,6.41384517,606.58,606.17,0.26997298]
[1743243213568,6.41384517,606.57,606.17,0.26997298]
[1743243213768,2.78850648,606.59,606.16,1.717]
[1743243213769,2.27664007,606.56,606.16,1.717]
[1743243213975,0.92822714,606.55,606.17,0.26974551]
[1743243214174,2.78850648,606.59,606.16,1.717]
[1743243214470,0.98295729,606.96,606.16,1.717]
[1743243214471,1.07250249,606.55,606.17,0.26975459]
[1743243214674,1.07250249,606.58,606.17,0.26975459]
[1743243214975,0.92785654,606.57,606.17,0.26975459]
[1743243215178,1.07250249,606.58,606.17,0.26975459]
[1743243215473,1.63828555,607.01,606.3,1.23499871]
[1743243215474,1.07250249,606.57,606.3,1.23499871]
[1743243216075,1.07250249,606.56,606.3,1.23499871]
[1743243216672,0.49443431,606.86,606.3,1.23499871]
[1743243216875,2.90569922,606.85,606.3,1.23499871]
[1743243217074,6.40857519,606.84,606.3,1.23499871]
[1743243217274,6.40857519,606.83,606.3,1.23499871]
[1743243217575,5.91414088,606.82,606.22,1.23499871]
[1743243217774,5.91414088,606.81,606.23,0.26966085]
[1743243217976,5.91414088,606.8,606.23,0.26966085]
[1743243218176,5.91414088,606.79,606.23,0.26966085]
[1743243218376,5.91414088,606.78,606.23,0.26966085]
[1743243218576,5.91414088,606.77,606.23,0.26966085]
[1743243218777,5.91414088,606.76,606.23,0.26966085]
[1743243218978,3.7585249,606.75,606.23,0.26966085]
[1743243219174,6.54457314,606.74,606.23,0.26966085]
[1743243219381,4.42964829,606.73,606.23,0.26966085]
[1743243219576,3.75785079,606.72,606.22,0.26966085]
[1743243219775,3.75785079,606.71,606.24,1.242]
[1743243219980,3.75785079,606.7,606.25,0.26966085]
[1743243220180,2.27466957,606.69,606.25,0.26966085]
[1743243220377,2.27466957,606.68,606.25,0.26966085]
[1743243220580,2.27466957,606.67,606.25,0.26966085]
[1743243220781,2.27466957,606.66,606.25,0.26966085]
[1743243220975,0.92686517,606.65,606.25,0.26966085]
[1743243221177,0.92686517,606.64,606.25,0.26966085]
[1743243221378,0.92681257,606.63,606.35,1.23499871]
[1743243221581,1.07155701,606.66,606.36,0.26966085]
[1743243221777,1.07155701,606.63,606.36,0.26966085]
[1743243222381,1.63670087,607.0,606.36,0.26966085]
[1743243222382,1.63826342,606.94,606.36,0.26966085]
[1743243222578,6.4039845,606.93,606.36,0.26966085]
[1743243222779,6.4039845,606.92,606.36,0.26966085]
[1743243222978,5.90957121,606.91,606.36,0.26966085]
[1743243223181,6.40389431,606.9,606.36,0.26966085]